Cogmind - Beta 14 @@@ ROGUE MODE // 2025.03.31 @ 20:28:56 Player: golanco Result: Destroyed by G-34 Mercenary with Small Laser Performance ------------- Evolutions (1) 500 Regions Visited (2) 400 Robots Destroyed (45) 225 Value Destroyed (781) 781 Prototype IDs (3) 60 Alien Tech Used (0) 0 Bonus (0) 0 TOTAL SCORE: 1966 Bonus ------- None Cogmind --------- Core Integrity 0/400 Matter 300/300 Energy 100/100 System Corruption 3% Temperature Hot (226) Movement Treading (240) Ox1 Location -9/Materials Parts ------- > --- POWER (1) -------- Reinforced Ion Engine > --- PROPULSION (2) --- Light Treads > --- UTILITY (4) ------ Large Storage Unit Targeting Computer Targeting Computer > --- WEAPON (2) ------- (None) > --- INVENTORY (15) --- Ion Engine Light Ion Engine Light Ion Engine Light Treads Light Treads Light Treads Improved Heat Sink Structural Scanner Transport Network Coupler Targeting Computer Hacking Suite Hacking Suite Peak State ------------ > --- POWER ------------ Reinforced Ion Engine > --- PROPULSION ------- Light Treads Light Treads > --- UTILITY ---------- Large Storage Unit Targeting Computer Targeting Computer Light Armor Plating > --- WEAPON ----------- Beam Rifle Light Assault Rifle > --- INVENTORY -------- Ion Engine Light Ion Engine Light Ion Engine Light Treads Light Treads Light Treads Improved Heat Sink Structural Scanner Signal Interpreter Transport Network Coupler Targeting Computer Targeting Computer Targeting Computer Hacking Suite Hacking Suite [Rating: 13] Favorites ----------- Power Ion Engine Engine Ion Engine Propulsion Light Treads Treads Light Treads Wheel Compact Wheel Utility Large Storage Unit Storage Large Storage Unit Processor Targeting Computer Protection Light Armor Plating Weapon Light Assault Rifle Energy Gun Medium Laser Ballistic Gun Light Assault Rifle Build | -11 -10 -9 ------- Run | Yrd Mat Mat Slots Evolved 2 | . . 2 Power . | . . . Propulsion . | . . . Utility 2 | . . 2 Weapon . | . . . Parts Attached 30 | 7 7 16 Power 4 | 1 1 2 Engine 4 | 1 1 2 Core . | . . . Reactor . | . . . Propulsion 9 | 2 2 5 Treads 7 | . 2 5 Leg . | . . . Wheel 2 | 2 . . Hover . | . . . Flight . | . . . Utility 8 | 1 2 5 Device . | . . . Storage 3 | 1 2 . Processor 4 | . . 4 Hackware . | . . . Protection 1 | . . 1 Artifact . | . . . Weapon 9 | 3 2 4 Energy Gun 7 | 3 1 3 Energy Cannon . | . . . Ballistic Gun 2 | . 1 1 Ballistic Cannon . | . . . Launcher . | . . . Special Weapon . | . . . Impact Weapon . | . . . Slashing Weapon . | . . . Piercing Weapon . | . . . Special Melee Weapon . | . . . Unidentified Prototypes . | . . . Parts Lost 13 | . 4 9 Power . | . . . Propulsion 3 | . 2 1 Utility 4 | . . 4 Weapon 6 | . 2 4 Highest Loss Streak 4 | . 4 4 To Critical Strikes . | . . . Average Slot Usage (%) 97 | . 96 97 Engine 12 | . 14 11 Treads 15 | . 11 21 Wheel 8 | . 13 . Storage 22 | . 27 12 Processor 8 | . . 23 Protection 2 | . . 6 Energy Gun 16 | . 21 6 Ballistic Gun 9 | . 6 13 Peak Build Rating 13 | 6 9 13 Average Rating 8 | 4 7 11 On Entrance 5 | . 6 9 Naked Turns . | . . . Heaviest Build 37 | 12 33 37 Greatest Support 40 | 26 40 40 Greatest Overweight (x) 10 | 2 10 1 Average Overweight (x) . | . . . Largest Inventory Capacity 15 | 8 15 15 Average Capacity 14 | 7 14 15 Most Carried 15 | 2 15 15 Average Carried 11 | . 10 13 Final Capacity 15 | 8 15 15 Final Carried 15 | 2 15 14 Class Distribution -------------------- 50% | Mutant 49% | Scavenger-Mutant Dominant Class ---------------- Mutant | -10/Materials Scavenger-Mutant | -9/Materials Resources | -11 -10 -9 ----------- Run | Yrd Mat Mat Matter Collected 951 | 200 439 312 Remotely . | . . . Salvage Created 1518 | . 855 663 Parts 91 | . 43 48 Haulers Intercepted 3 | . 2 1 Recyclers Shooed 7 | . 2 5 Parts Field Recycled . | . . . Retrieved Matter . | . . . Parts Self-Destructed . | . . . Prevented . | . . . Kills | -11 -10 -9 ------- Run | Yrd Mat Mat Combat Hostiles Destroyed 26 | . 13 13 Guns 26 | . 13 13 Classes Destroyed 11 | . 9 2 Worker 3 | . 2 1 Builder 1 | . 1 . Tunneler 2 | . 1 1 Hauler 3 | . 2 1 Recycler 4 | . 2 2 Operator 3 | . 3 . Watcher 3 | . 2 1 Swarmer 12 | . 6 6 Grunt 11 | . 7 4 Brawler 1 | . . 1 Sentry 2 | . . 2 Best Kill Streak 6 | . 4 6 Combat Bots Only 5 | . 3 5 Max Kills in Single Turn 2 | . 2 2 Gunslinging 1 | . . 1 Exploded . | . . . Melee . | . . . Uniques/NPCs Destroyed . | . . . Combat | -11 -10 -9 -------- Run | Yrd Mat Mat Hostile Shots Fired 245 | . 76 169 Missed 52 | . 19 33 Damage Taken 2050 | . 598 1452 Core 633 | . 224 409 Absorbed by Shields . | . . . Core Remaining (%) 55 | 100 10 . Volleys Fired 184 | . 95 89 Largest 2 | . 2 2 Hottest 112 | . 100 112 Shots Fired 338 | . 182 156 Gun 338 | . 182 156 Cannon . | . . . Launcher . | . . . Special . | . . . Kinetic 124 | . 14 110 Thermal 214 | . 168 46 Explosive . | . . . Electromagnetic . | . . . Robot Hit Streak 19 | . 15 19 Robot Miss Streak 6 | . 6 2 Penetration Max . | . . . Secondary Targets 5 | . 2 3 Max Gunslinging Chain 1 | . 1 1 Shots Hit Robots 223 | . 111 112 Core Hits 81 | . 42 39 Critical Kills . | . . . Critical Parts Destroyed 1 | . . 1 Critical Strikes 10 | . 5 5 Burn 9 | . 5 4 Destroy 1 | . . 1 Melee Attacks . | . . . Impact . | . . . Slashing . | . . . Piercing . | . . . Sneak Attacks . | . . . Combat Hostiles . | . . . Follow-up Attacks . | . . . Damage Inflicted 2456 | . 1373 1083 Guns 2446 | . 1373 1073 Cannons . | . . . Explosions . | . . . Melee . | . . . Ramming 10 | . . 10 Kinetic 719 | . 63 656 Thermal 1727 | . 1310 417 Explosive . | . . . Electromagnetic . | . . . Impact . | . . . Slashing . | . . . Piercing . | . . . Highest Corruption 3 | . . 3 Average Corruption 3 | . . 3 Corruption Purged . | . . . Corruption Blocked . | . . . Effects 8 | . . 8 Message Errors 1 | . . 1 Matter Fused 4 | . . 4 Heat Flow Errors 2 | . . 2 Energy Discharges 1 | . . 1 Overload Shots . | . . . Overflow Damage . | . . . Projectiles . | . . . Explosions . | . . . Melee . | . . . Knockbacks . | . . . Impact . | . . . Kinetic . | . . . Secondary . | . . . Self-Inflicted Damage . | . . . Shots . | . . . Rammed 3 | . . 3 Targets Rammed 3 | . . 3 Kicked . | . . . Crushed . | . . . Highest Temperature 517 | . 475 517 Average Temperature 138 | . 143 129 Received Heat Transfer 516 | . 225 291 Effects 27 | . 10 17 Shutdowns 6 | . 3 3 Energy Bleed 2 | . 1 1 Interference 7 | . . 7 Matter Decay 3 | . 1 2 Short Circuit 1 | . . 1 Damage (minor) 2 | . 1 1 Damage (major) 6 | . 4 2 Siege Activations . | . . . Robots Corrupted . | . . . Combat Hostiles . | . . . Parts Fried . | . . . Impact Corruptions . | . . . Robots Melted . | . . . Combat Hostiles . | . . . Parts Melted 9 | . 9 . Heat Transferred 5435 | . 4101 1334 Parts Sabotaged . | . . . Parts Stolen . | . . . Parts Stripped . | . . . Power Chain Reactions . | . . . Alert | -11 -10 -9 ------- Run | Yrd Mat Mat Peak Influence 286 | . 286 265 Initial 39 | . . 39 Average 123 | . 114 151 Maximum Alert Level 1 | . 1 1 Low Security (%) 83 | 100 85 77 Level 1 16 | . 14 22 Level 2 . | . . . Level 3 . | . . . Level 4 . | . . . Level 5 . | . . . High Security . | . . . Max Security . | . . . Squads Dispatched 4 | . 4 . Investigation . | . . . Extermination . | . . . Reinforcement 4 | . 4 . Assault . | . . . Garrison . | . . . Intercept . | . . . Searches Triggered . | . . . Construction Impeded . | . . . Haulers Reinforced . | . . . Active Scanning Responses . | . . . Cargo Convoy Interrupts . | . . . Stealth | -11 -10 -9 --------- Run | Yrd Mat Mat Distress Signals 3 | . 2 1 Communications Jammed . | . . . Distress Signals . | . . . Times Spotted 53 | . 28 25 Peak Tracking Total 8 | . 5 8 Tactical Retreats 3 | . 2 1 Traps | -11 -10 -9 ------- Run | Yrd Mat Mat Traps Triggered . | . . . Indirectly . | . . . Trap Hack Attempts . | . . . Triggered . | . . . Disarmed . | . . . Reprogrammed . | . . . Reused . | . . . Traps Extracted . | . . . Installed . | . . . Triggered . | . . . Machines | -11 -10 -9 ---------- Run | Yrd Mat Mat Machines Disabled . | . . . Max in Single Turn . | . . . Machines Repaired . | . . . Machines Dismantled . | . . . Machines Sabotaged . | . . . Overloaded Fab Kills . | . . . Hacking | -11 -10 -9 --------- Run | Yrd Mat Mat Machines Accessed 4 | . 2 2 Terminals 4 | . 2 2 Fabricators . | . . . Repair Stations . | . . . Recycling Units . | . . . Scanalyzers . | . . . Garrison Access . | . . . Total Hacks 8 | . 5 3 Successful 5 | . 3 2 Failed 3 | . 2 1 Catastrophic . | . . . Database Lockouts . | . . . Manual 1 | . . 1 Terminals 8 | . 5 3 Fabricators . | . . . Repair Stations . | . . . Recycling Units . | . . . Scanalyzers . | . . . Garrison Access . | . . . Terminal Hacks 5 | . 3 2 Prototype ID Bank 2 | . 1 1 Locate Traps 1 | . 1 . Dispatch Records 1 | . 1 . Hauler Manifests 1 | . . 1 Fabricator Hacks . | . . . Repair Station Hacks . | . . . Recycling Unit Hacks . | . . . Scanalyzer . | . . . Garrison Access Hacks . | . . . Unauthorized Hacks . | . . . Terminals . | . . . Fabricators . | . . . Repair Stations . | . . . Recycling Units . | . . . Scanalyzers . | . . . Garrison Access . | . . . Data Cores Recovered . | . . . Used . | . . . Hacking Detections 2 | . 1 1 Full Trace Events . | . . . Feedback Events . | . . . Feedback Blocked . | . . . Robot Schematics Acquired . | . . . Robots Built . | . . . Authchips . | . . . Time . | . . . Total Robot Build Rating . | . . . Part Schematics Acquired . | . . . Parts Built . | . . . Authchips . | . . . Time . | . . . Total Part Build Rating . | . . . Parts Repaired . | . . . Time . | . . . Parts Recycled . | . . . Recycled Matter . | . . . Retrieved Matter . | . . . Retrieved Components . | . . . Parts Scanalyzed . | . . . Part Schematics Acquired . | . . . Parts Damaged . | . . . Bothacking | -11 -10 -9 ------------ Run | Yrd Mat Mat Used RIF Installer . | . . . Robots Hacked . | . . . Non-combat . | . . . Combat . | . . . Robot Hacks Applied . | . . . Relay Couplers Released . | . . . Fabnet Peak Effective % . | . . . Robots Rewired . | . . . Allies Hacked . | . . . Hacks Repelled . | . . . Allies | -11 -10 -9 -------- Run | Yrd Mat Mat Total Allies . | . . . Largest Group . | . . . Highest-Rated Group . | . . . Highest-Rated Ally . | . . . Total Orders . | . . . Ally Attacks . | . . . Total Damage . | . . . Kills . | . . . Allies Corrupted . | . . . Allies Melted . | . . . Intel | -11 -10 -9 ------- Run | Yrd Mat Mat Robot Analysis Total . | . . . Derelict Logs Recovered . | . . . Drone Launches . | . . . Drone Recoveries . | . . . Exploration | -11 -10 -9 ------------- Run | Yrd Mat Mat Turns Passed 1747 | 49 1106 592 Spaces Moved 821 | 42 571 208 Core 20 | 8 12 . Treads 472 | . 264 208 Legs . | . . . Wheels 329 | 34 295 . Hover . | . . . Flight . | . . . Fastest Speed 50 | 50 90 160 Average Speed 141 | 86 139 160 Slowest Speed 550 | 150 550 240 Overloaded Moves . | . . . Propulsion Burnouts . | . . . Robots Hopped . | . . . Cave-ins Triggered . | . . . Exploration Rate (%) 32 | 3 73 22 Regions Visited 2 Branch Regions . Pre-discovered Areas . | . . . Known Exits Taken . | . . . Unknown Exits Taken 2 | 1 1 . Scrap Searched . | . . . Spaces Dug . | . . . Terrain Destroyed . | . . . Melee . | . . . Projectile . | . . . AOE . | . . . Terrain Rammed . | . . . Walls Destroyed . | . . . Machines Disabled . | . . . Actions | -11 -10 -9 --------- Run | Yrd Mat Mat Total 1086 | 50 705 331 Wait 11 | . 7 4 Move 819 | 41 570 208 Hop . | . . . Pick Up 26 | 2 20 4 Fast Attach 10 | 6 3 1 Attach 9 | . 3 6 Detach . | . . . Swap 11 | 1 1 9 Drop 13 | . 6 7 Fire 184 | . 95 89 Melee . | . . . Ram . | . . . Kick . | . . . Crush 3 | . . 3 Escape Stasis . | . . . Rewire . | . . . Trap . | . . . Miscellaneous . | . . . Route ------- -11/Scrapyard -10/Materials (discovered 3 exits: *Mat / [*Min x2]) -9/Materials History --------- Turn | Location | Event 17 | -11/Scrapyard | Discovered new exit (range 15) 50 | -11/Scrapyard | Entered Materials 311 | -10/Materials | Build established: Mutant 336 | -10/Materials | Discovered new exit (range 8) 489 | -10/Materials | Discovered new exit (range 16) 563 | -10/Materials | Core integrity fell below 50% 642 | -10/Materials | Lost 4 parts (2n2w) 769 | -10/Materials | Core integrity fell below 20% 1005 | -10/Materials | Build established: Scavenger-Mutant 1020 | -10/Materials | Discovered new exit (range 15) 1156 | -10/Materials | Entered another Materials area 1156 | -9/Materials | Evolved 2 slots: Utility x2 1466 | -9/Materials | Core integrity fell below 50% 1666 | -9/Materials | Lost 3 parts (2u1w) 1725 | -9/Materials | Core integrity fell below 20% 1748 | -9/Materials | Destroyed by G-34 Mercenary with Small Laser Last Messages --------------- K-01 Serf collects debris. K-01 Serf cleans the Terminal. System corrupted: Matter fused (-6). Beam Rifle destroyed. Y-45 Defender suffers critical hit (Burn). Beam Rifle destroyed. Y-45 Defender heat spikes uncontrollably. Lgt. Treads destroyed. Y-45 Defender heat spikes uncontrollably. Y-45 Defender heat damages Lgt. Treads. Slammed into Y-45 Defender. Y-45 Defender heat spikes uncontrollably. Slammed into Y-45 Defender. Y-45 Defender heat damages Beam Rifle. Critical hit (Burn: +37). Targeting Computer destroyed. Slammed into Y-45 Defender. System corrupted: Heat flow error (+248). Y-45 Defender heat short circuits Hvy. Assault Rifle. Map ----- +----------------------------------------------------+ | ## = + T + ????????????????????? | | ## = # #?????????????????????? | | ?# ######## #?????????????????????? | | ?# #??????# ####?????????????????????? | | ??# #??????# #????????????????????????? | | ??# #??????# #????????????????????????? | | ??# #??????# #????????????????????????? | | ??##########??????# %#######??????????????????? | | ??????????????????# ???????????? | | ??????????????????# ###### #?????????????????? | | ??????????????????# #????????????????????????? | | ??????????????????# #????????????????????????? | | ??????????????????# #????????????????????????? | | ??????????????????# #????????????????????????? | | ??????????????????# #????????????????????????? | | ??????????????????+ #????????????????????????? | | ??????????????????# #????????????????????????? | | ??????????????????# #????????????????????????? | | ??????????????????# %#????????????????????????? | | ??????????????????# #????????????????????????? | | ??????????????????# #????????????????????????? | | ??????????????????# #????????????????????????? | | ??????????????????+ #????????????????????????? | | ??????????????????# #?###+##?????????????????? | | ??????????????????# ### ######????????????? | | ??????????????????# @ #??????????? | | ??????????????????# Y g a ?????? | | ??????????????????# # ##### w ?????? | | ????????????????# ######????????? ??????? | | ????????????????#!!!!//#??????????????????????? | | ????????????????#!!!!//#??????????????????????? | | ????????????????########??????????????????????? | | ??????????????????????????????????????????????? | | ??????????????????????????????????????????????? | | ??????????????????????????????????????????????? | | ??????????????????????????????????????????????? | | ??????????????????????????????????????????????? | | ??????????????????????????????????????????????? | | ??????????????????????????????????????????????? | | ??????????????????????????????????????????????? | | | | | | | | | | | | | | | | | | | | | +----------------------------------------------------+ Best States ------------- Heat Dissipation 28 Energy Generation 12 Energy Capacity 265 Matter Stores 500 Matter Capacity 500 Sight Range 16 Terrain Scan Density 10 Armor Coverage 150 Evasion (%) 42 Targeting Accuracy 10 Recoil Reduction 2 Item Schematics ----------------- None Robot Schematics ------------------ None Fabricated ------------ Nothing Alien Tech Used ----------------- None Achievements -------------- None Challenges ------------ None Game ------ Seed ConcussiveBurstMonowheel Manual? 0 Play Time 00:19:39 Cumulative 33.9 hours Start 2025.03.31 @ 20:07:43 End 2025.03.31 @ 20:28:56 Sessions 1 Manual Loads 0 Difficulty Rogue Special Mode None Game No. 94 Rogue 94 Adventurer 0 Explorer 0 Win Type - Total 0 Types 0/0/0/0/0/0/0/0/0 Lore% 16 Gallery% 24 Achievement% 25 Wizard Run 0 Options --------- Layout 1 ASCII 0 Keyboard 0 Movement Mouse Keybinds 0 Fullscreen 1 Font 36/Smallcaps Map View 50x40 Zoom Use 0% Tactical HUD 0 Map Filters NONE Filters NONE Steam 1 RUN: 1c3bb32a-e581-40ee-92c6-71b520e4e483